fUST/lending_fUST_20260504
["ID","MTS","AMOUNT","RATE_DAILY","PERIOD"]
[421534801,1777830642000,-500.0,0.00016438,2]
[421534791,1777830642000,-500.0,0.00016438,2]
[421534796,1777830642000,-500.0,0.00016438,2]
[421534798,1777830642000,-500.0,0.00016438,2]
[421534794,1777830642000,-1727.26,0.00016438,2]
[421534799,1777830642000,-500.0,0.00016438,2]
[421534795,1777830642000,-500.0,0.00016438,2]
[421534802,1777830642000,-500.0,0.00016438,2]
[421534806,1777830642000,-500.0,0.00016438,2]
[421534811,1777830642000,-500.0,0.00016438,2]
[421534779,1777830642000,-500.0,0.00016438,2]
[421534805,1777830642000,-13774.84,0.00016438,2]
[421534789,1777830642000,-500.0,0.00016438,2]
[421534778,1777830642000,-643.39,0.00016438,2]
[421534762,1777830642000,-500.0,0.00016438,2]
[421534774,1777830642000,-500.0,0.00016438,2]
[421534804,1777830642000,-500.0,0.00016438,2]
[421534756,1777830642000,-4484.97,0.00016438,2]
[421534755,1777830642000,-11011.27,0.00016438,2]
[421534747,1777830642000,-788.96,0.00016438,2]
[421534748,1777830642000,-500.0,0.00016438,2]
[421534749,1777830642000,-3988.36,0.00016438,2]
[421534750,1777830642000,-500.0,0.00016438,2]
[421534751,1777830642000,-500.0,0.00016438,2]
[421534752,1777830642000,-634.78,0.00016438,2]
[421534753,1777830642000,-151.32330022,0.00016438,2]
[421534754,1777830642000,-500.0,0.00016438,2]
[421534757,1777830642000,-500.0,0.00016438,2]
[421534759,1777830642000,-1265.17,0.00016438,2]
[421534776,1777830642000,-749.33,0.00016438,2]
[421534761,1777830642000,-500.0,0.00016438,2]
[421534764,1777830642000,-500.0,0.00016438,2]
[421534758,1777830642000,-500.0,0.00016438,2]
[421534765,1777830642000,-3031.55,0.00016438,2]
[421534760,1777830642000,-500.0,0.00016438,2]
[421534766,1777830642000,-500.0,0.00016438,2]
[421534771,1777830642000,-500.0,0.00016438,2]
[421534770,1777830642000,-500.0,0.00016438,2]
[421534769,1777830642000,-500.0,0.00016438,2]
[421534767,1777830642000,-500.0,0.00016438,2]
[421534772,1777830642000,-5512.02,0.00016438,2]
[421534768,1777830642000,-500.0,0.00016438,2]
[421534775,1777830642000,-1098.52,0.00016438,2]
[421534773,1777830642000,-500.0,0.00016438,2]
[421534763,1777830642000,-2110.79,0.00016438,2]
[421534803,1777830642000,-500.0,0.00016438,2]
[421534829,1777830642000,-1012.01,0.00016438,2]
[421534807,1777830642000,-2889.77,0.00016438,2]
[421534853,1777830642000,-555.48063581,0.00016438,2]
[421534855,1777830642000,-559.76,0.00016438,2]
[421534856,1777830642000,-500.0,0.00016438,2]
[421534854,1777830642000,-540.17840195,0.00016438,2]
[421534857,1777830642000,-500.0,0.00016438,2]
[421534842,1777830642000,-5601.96,0.00016438,2]
[421534844,1777830642000,-500.0,0.00016438,2]
[421534846,1777830642000,-9509.62,0.00016438,2]
[421534850,1777830642000,-921.36,0.00016438,2]
[421534808,1777830642000,-5154.11,0.00016438,2]
[421534849,1777830642000,-500.0,0.00016438,2]
[421534847,1777830642000,-1865.84,0.00016438,2]
[421534852,1777830642000,-500.0,0.00016438,2]
[421534843,1777830642000,-500.0,0.00016438,2]
[421534862,1777830642000,-4795.48,0.00016438,2]
[421534861,1777830642000,-1506.64,0.00016438,2]
[421534859,1777830642000,-500.0,0.00016438,2]
[421534865,1777830642000,-500.0,0.00016438,2]
[421534864,1777830642000,-500.0,0.00016438,2]
[421534868,1777830642000,-1563.27,0.00016438,2]
[421534867,1777830642000,-406.91374206,0.00016438,2]
[421534873,1777830642000,-957.29,0.00016438,2]
[421534871,1777830642000,-561.87,0.00016438,2]
[421534872,1777830642000,-4233.4,0.00016438,2]
[421534869,1777830642000,-500.0,0.00016438,2]
[421534870,1777830642000,-3560.15,0.00016438,2]
[421534875,1777830642000,-500.0,0.00016438,2]
[421534876,1777830642000,-500.0,0.00016438,2]
[421534866,1777830642000,-643.41,0.00016438,2]
[421534841,1777830642000,-500.0,0.00016438,2]
[421534851,1777830642000,-1641.79,0.00016438,2]
[421534837,1777830642000,-500.0,0.00016438,2]
[421534812,1777830642000,-500.0,0.00016438,2]
[421534813,1777830642000,-500.0,0.00016438,2]
[421534835,1777830642000,-500.0,0.00016438,2]
[421534809,1777830642000,-4582.66,0.00016438,2]
[421534814,1777830642000,-500.0,0.00016438,2]
[421534815,1777830642000,-500.0,0.00016438,2]
[421534817,1777830642000,-500.0,0.00016438,2]
[421534828,1777830642000,-512.38,0.00016438,2]
[421534827,1777830642000,-500.0,0.00016438,2]
[421534818,1777830642000,-830.88,0.00016438,2]
[421534816,1777830642000,-500.0,0.00016438,2]
[421534820,1777830642000,-500.0,0.00016438,2]
[421534819,1777830642000,-1239.27,0.00016438,2]
[421534826,1777830642000,-500.0,0.00016438,2]
[421534810,1777830642000,-5549.4,0.00016438,2]
[421534821,1777830642000,-617.2,0.00016438,2]
[421534823,1777830642000,-500.0,0.00016438,2]
[421534838,1777830642000,-500.0,0.00016438,2]
[421534833,1777830642000,-538.40397595,0.00016438,2]
[421534839,1777830642000,-500.0,0.00016438,2]
[421534836,1777830642000,-2061.97,0.00016438,2]
[421534834,1777830642000,-855.64,0.00016438,2]
[421534840,1777830642000,-500.0,0.00016438,2]
[421534831,1777830642000,-504.46,0.00016438,2]
[421534830,1777830642000,-500.0,0.00016438,2]
[421534822,1777830642000,-500.0,0.00016438,2]
[421534824,1777830642000,-500.0,0.00016438,2]
[421534825,1777830642000,-537.21,0.00016438,2]
[421534832,1777830642000,-500.0,0.00016438,2]
[421534896,1777830643000,-500.0,0.00016438,2]
[421534899,1777830643000,-500.0,0.00016438,2]
[421534908,1777830643000,-511.38,0.00016438,2]
[421534911,1777830643000,-500.0,0.00016438,2]
[421534906,1777830643000,-500.0,0.00016438,2]
[421534910,1777830643000,-4454.22,0.00016438,2]
[421534904,1777830643000,-9721.87,0.00016438,2]
[421534913,1777830643000,-500.0,0.00016438,2]
[421534897,1777830643000,-4512.58,0.00016438,2]
[421534895,1777830643000,-755.87,0.00016438,2]
[421534893,1777830643000,-740.1,0.00016438,2]
[421534878,1777830643000,-4800.05,0.00016438,2]
[421534880,1777830643000,-500.0,0.00016438,2]
[421534882,1777830643000,-1186.19,0.00016438,2]
[421534889,1777830643000,-500.0,0.00016438,2]
[421534891,1777830643000,-13619.59,0.00016438,2]
[421534894,1777830643000,-500.0,0.00016438,2]
[421534892,1777830643000,-6100.83,0.00016438,2]
[421534890,1777830643000,-794.37,0.00016438,2]
[421534888,1777830643000,-500.0,0.00016438,2]
[421534886,1777830643000,-500.0,0.00016438,2]
[421534898,1777830643000,-1145.92,0.00016438,2]
[421534901,1777830643000,-529.0,0.00016438,2]
[421534884,1777830643000,-1064.73,0.00016438,2]
[421534912,1777830643000,-673.75,0.00016438,2]
[421534903,1777830643000,-2726.45,0.00016438,2]
[421534935,1777830643000,-2302.42,0.00016359,2]
[421534936,1777830643000,-383.015,0.00016359,2]
[421534932,1777830643000,-500.0,0.00016438,2]
[421534929,1777830643000,-59593.59845731,0.00016438,2]
[421534933,1777830643000,-2172.94698871,0.00016438,2]
[421534928,1777830643000,-280.61486786,0.00016438,2]
[421534934,1777830643000,-358.50119038,0.00016438,2]
[421534926,1777830643000,-1331.93,0.00016438,2]
[421534931,1777830643000,-6481.28,0.00016438,2]
[421534930,1777830643000,-10352.94154269,0.00016438,2]
[421534927,1777830643000,-500.0,0.00016438,2]
[421534925,1777830643000,-536.34,0.00016438,2]
[421534923,1777830643000,-500.0,0.00016438,2]
[421534922,1777830643000,-500.0,0.00016438,2]
[421534920,1777830643000,-3115.92,0.00016438,2]
[421534921,1777830643000,-518.70937076,0.00016438,2]
[421534918,1777830643000,-500.0,0.00016438,2]
[421534916,1777830643000,-5648.7,0.00016438,2]
[421534919,1777830643000,-2106.53,0.00016438,2]
[421534917,1777830643000,-500.0,0.00016438,2]
[421534914,1777830643000,-500.0,0.00016438,2]
[421534915,1777830643000,-1906.28,0.00016438,2]
[421534924,1777830643000,-916.38,0.00016438,2]
[421534940,1777830644000,-352.44868484,0.00010006,2]
[421534939,1777830644000,-446.0,0.00010006,2]
[421534942,1777830644000,-643.1129962,0.00016359,2]
[421534946,1777830644000,-181.20532045,0.00016438,2]
[421534943,1777830644000,-331.53182091,0.00016438,2]
[421534944,1777830644000,-500.0,0.00016438,2]
[421534941,1777830644000,-3027.20226988,0.00010006,2]
[421534945,1777830644000,-1058.6,0.00016438,2]
[421534953,1777830646000,-351.92062858,0.00016438,2]
[421534952,1777830646000,-494.293216,0.00016438,2]
[421534959,1777830647000,-2049.87898826,0.00016438,2]
[421534960,1777830647000,-8478.91862386,0.00016438,2]
[421534958,1777830647000,-539.16,0.00016438,2]
[421534961,1777830647000,-1257.42635663,0.00016438,2]
[421534956,1777830647000,-500.0,0.00016438,2]
[421534954,1777830647000,-5173.46939032,0.00016438,2]
[421534955,1777830647000,-1552.96144465,0.00016438,2]
[421534957,1777830647000,-500.0,0.00016438,2]
[421535128,1777831012000,161.72349687,0.0001698,120]
[421535153,1777831600000,285.49089906,8.654e-05,2]
[421535173,1777831790000,458.20547818,8.439e-05,2]
[421535174,1777831805000,5000.0,8.355e-05,2]
[421535185,1777831832000,-300.0,8.566e-05,2]
[421535184,1777831832000,-2075.49023617,8.439e-05,2]
[421535186,1777831832000,-300.0,8.566e-05,2]
[421535187,1777831832000,-300.0,8.566e-05,2]
[421535188,1777831832000,-1200.0,8.566e-05,2]
[421535190,1777831832000,-540.0,8.567e-05,2]
[421535189,1777831832000,-281.23728779,8.567e-05,2]
[421535193,1777831832000,-300.0,9.501e-05,2]
[421535191,1777831832000,-420.0,9.423e-05,2]
[421535195,1777831832000,-300.0,9.501e-05,2]
[421535194,1777831832000,-300.0,9.501e-05,2]
[421535196,1777831832000,-300.0,9.501e-05,2]
[421535197,1777831832000,-300.0,9.501e-05,2]
[421535198,1777831832000,-300.0,9.501e-05,2]
[421535201,1777831832000,-300.0,9.501e-05,2]
[421535200,1777831832000,-300.0,9.501e-05,2]
[421535192,1777831832000,-396.0,9.423e-05,2]
[421535203,1777831832000,-300.0,9.501e-05,2]
[421535199,1777831832000,-300.0,9.501e-05,2]
[421535217,1777831832000,-416.7613951,0.00011789,2]
[421535218,1777831832000,-1071.458,0.00011789,2]
[421535214,1777831832000,-300.0,0.00011401,2]
[421535211,1777831832000,-274.65301039,0.00010567,2]
[421535213,1777831832000,-720.0,0.00010659,2]
[421535210,1777831832000,-587.0,0.00010365,2]
[421535216,1777831832000,-392.80047204,0.00011725,2]
[421535215,1777831832000,-471.19952796,0.00011725,2]
[421535208,1777831832000,-210.06473495,9.505e-05,2]
[421535209,1777831832000,-600.0,9.69e-05,2]
[421535204,1777831832000,-300.0,9.501e-05,2]
[421535202,1777831832000,-300.0,9.501e-05,2]
[421535206,1777831832000,-300.0,9.501e-05,2]
[421535205,1777831832000,-300.0,9.501e-05,2]
[421535207,1777831832000,-300.0,9.501e-05,2]
[421535212,1777831832000,-57.20698921,0.00010567,2]
[421535229,1777831838000,-374.451502,0.00015068,2]
[421535228,1777831838000,-433.1054232,0.00014567,2]
[421535225,1777831838000,-1000.0,0.00013699,2]
[421535226,1777831838000,-1000.0,0.00014187,2]
[421535222,1777831838000,-1000.0,0.00012897,2]
[421535224,1777831838000,-546.06814,0.00013699,2]
[421535223,1777831838000,-1000.0,0.00013699,2]
[421535221,1777831838000,-382.4827114,0.00012567,2]
[421535220,1777831838000,-378.4701882,0.00011789,2]
[421535230,1777831838000,-3327.50555471,0.000154,2]
[421535227,1777831838000,-244.0,0.00014187,2]
[421535231,1777831838000,-163.54315146,0.00015423,2]
[421535232,1777831838000,-160.0,0.0001546,2]
[421535234,1777831838000,-1000.0,0.00015606,2]
[421535233,1777831838000,-3327.50555471,0.000155,2]
[421535243,1777831838000,-500.0,0.00015899,2]
[421535244,1777831838000,-500.0,0.00015899,2]
[421535240,1777831838000,-151.18312433,0.0001589,2]
[421535241,1777831838000,-500.0,0.00015899,2]
[421535242,1777831838000,-500.0,0.00015899,2]
[421535238,1777831838000,-442.0,0.00015706,2]
[421535239,1777831838000,-3327.50555471,0.000158,2]
[421535235,1777831838000,-492.0,0.00015606,2]
[421535236,1777831838000,-3327.50555471,0.000157,2]
[421535237,1777831838000,-185.0,0.00015706,2]
[421535252,1777831839000,-187.89643132,0.00015899,2]
[421535255,1777831839000,-500.0,0.00015899,2]
[421535253,1777831839000,-500.0,0.00015899,2]
[421535254,1777831839000,-500.0,0.00015899,2]
[421535251,1777831839000,-500.0,0.00015899,2]
[421535256,1777831839000,-500.0,0.00015899,2]
[421535249,1777831839000,-301.75838719,0.00015899,2]
[421535248,1777831839000,-500.0,0.00015899,2]
[421535246,1777831839000,-500.0,0.00015899,2]
[421535245,1777831839000,-259.61864385,0.00015899,2]
[421535247,1777831839000,-500.0,0.00015899,2]
[421535257,1777831839000,-577.75539082,0.00015899,2]
[421535250,1777831839000,-500.0,0.00015899,2]
[421535258,1777831839000,-392.42561193,0.00015899,2]
[421535261,1777831839000,-500.0,0.00015899,2]
[421535260,1777831839000,-500.0,0.00015899,2]
[421535264,1777831839000,-500.0,0.00015899,2]
[421535262,1777831839000,-376.81251358,0.00015899,2]
[421535263,1777831839000,-500.0,0.00015899,2]
[421535266,1777831839000,-500.0,0.00015899,2]
[421535271,1777831839000,-3715.72626716,0.000159,2]
[421535265,1777831839000,-500.0,0.00015899,2]
[421535267,1777831839000,-35098.75349187,0.000159,2]
[421535270,1777831839000,-205691.60075101,0.000159,2]
[421535268,1777831839000,-76671.00000002,0.000159,2]
[421535269,1777831839000,-1477.8415112,0.000159,2]
[421535259,1777831839000,-500.0,0.00015899,2]
[421535277,1777831841000,-671.77936835,0.000159,2]
[421535279,1777831841000,-6423.94677741,0.000159,2]
[421535280,1777831841000,-66388.96045033,0.000159,2]
[421535278,1777831841000,-703.674,0.000159,2]
[421535281,1777831841000,-3108.81909367,0.000159,2]
[421535282,1777831841000,-6085.88211101,0.000159,2]
[421535327,1777831843000,-310.92089355,0.000159,2]
[421535328,1777831846000,-1757.81993828,0.000159,2]
[421535331,1777831847000,-19261.50107101,0.00016,2]
[421535330,1777831847000,-90896.55287484,0.000159,2]
[421535333,1777831847000,-29850.72636456,0.00016137,2]
[421535332,1777831847000,-1469.58094067,0.00016131,2]
[421535329,1777831847000,-1350.18047102,0.000159,2]
[421537146,1777833031000,-5000.0,0.00013061,2]
[421537148,1777833031000,-259.97932418,0.0001326,2]
[421537152,1777833031000,-1200.0,0.00013393,2]
[421537150,1777833031000,-597.0,0.00013326,2]
[421537156,1777833031000,-300.0,0.00013698,2]
[421537154,1777833031000,-1021.57251259,0.00013462,2]
[421537173,1777833031000,-300.0,0.00014486,2]
[421537160,1777833031000,-394.39611497,0.00014074,2]
[421537169,1777833031000,-163.89876468,0.00014074,2]
[421537167,1777833031000,-441.70512035,0.00014074,2]
[421537171,1777833031000,-406.627467,0.00014418,2]
[421537175,1777833031000,-416.37759988,0.00014487,2]
[421537158,1777833031000,-1000.0,0.00013699,2]
[421537216,1777833038000,-3943.39240012,0.00014487,2]
[421537218,1777833038000,-503.8814169,0.00014749,2]
[421537219,1777833038000,-869.40991149,0.00014749,2]
[421537217,1777833038000,-1061.55854603,0.00014749,2]
[421537220,1777833038000,-156.21,0.00014796,2]
[421537222,1777833038000,-337.105126,0.00015068,2]
[421537223,1777833038000,-1327.31096281,0.00015158,2]
[421537221,1777833038000,-159.77,0.00014817,2]
[421537231,1777833040000,-306.77560253,0.0001526,2]
[421537233,1777833040000,-131.87789216,0.00015499,2]
[421537232,1777833040000,-151.0,0.00015468,2]
[421537229,1777833040000,-3359.26166026,0.00015158,2]
[421537230,1777833040000,-200.0,0.00015179,2]
[421537228,1777833040000,-1031.18074687,0.00015,2]
[421537251,1777833046000,-3871.13150466,0.0001485,2]
[421537252,1777833046000,-28.12210784,0.00015499,2]
[421537253,1777833046000,-1885.97196641,0.000155,2]
[421537316,1777834138000,3090.74,8.01e-05,2]
[421537465,1777834231000,-1098.22430452,9.425e-05,2]
[421537460,1777834231000,-1425.91195741,9.425e-05,2]
[421537459,1777834231000,-545.0,9.237e-05,2]
[421537456,1777834231000,-5000.0,9.237e-05,2]
[421537639,1777834240000,-300.0,9.612e-05,2]
[421537633,1777834240000,-300.0,9.612e-05,2]
[421537642,1777834240000,-300.0,9.612e-05,2]
[421537631,1777834240000,-300.0,9.612e-05,2]
[421537626,1777834240000,-300.0,9.612e-05,2]
[421537630,1777834240000,-300.0,9.612e-05,2]
[421537623,1777834240000,-300.0,9.611e-05,2]
[421537635,1777834240000,-300.0,9.612e-05,2]
[421537620,1777834240000,-230.80908766,9.425e-05,2]
[421537637,1777834240000,-300.0,9.612e-05,2]
[421537641,1777834240000,-300.0,9.612e-05,2]
[421537618,1777834240000,-1807.37804741,9.331e-05,2]
[421537628,1777834240000,-300.0,9.612e-05,2]
[421537660,1777834240000,-321.92927002,0.00011497,2]
[421537621,1777834240000,-272.82141528,9.497e-05,2]
[421537646,1777834240000,-300.0,9.612e-05,2]
[421537656,1777834240000,-814.24478776,0.0001,2]
[421537670,1777834240000,-1000.0,0.00013882,2]
[421537676,1777834240000,-72.94755772,0.00014423,2]
[421537674,1777834240000,-6660.47244228,0.00014423,2]
[421537668,1777834240000,-1000.0,0.00013699,2]
[421537664,1777834240000,-371.03712477,0.00013497,2]
[421537662,1777834240000,-587.0,0.00011629,2]
[421537672,1777834240000,-176.9,0.00014074,2]
[421537658,1777834240000,-420.0,0.00010572,2]
[421537652,1777834240000,-300.0,9.612e-05,2]
[421537654,1777834240000,-411.78042942,9.612e-05,2]
[421537644,1777834240000,-300.0,9.612e-05,2]
[421537648,1777834240000,-300.0,9.612e-05,2]
[421537650,1777834240000,-300.0,9.612e-05,2]
[421537666,1777834240000,-203.313733,0.00013699,2]
[421537703,1777834241000,-500.0,0.000152,2]
[421537714,1777834241000,-160.0,0.00015477,2]
[421537705,1777834241000,-152.0,0.0001525,7]
[421537701,1777834241000,-500.0,0.00015157,2]
[421537690,1777834241000,-895.36,0.00015,2]
[421537686,1777834241000,-602.0815365,0.000149,2]
[421537680,1777834241000,-500.0,0.00014709,2]
[421537682,1777834241000,-500.0,0.00014748,2]
[421537684,1777834241000,-500.0,0.00014748,2]
[421537692,1777834241000,-600.0,0.00015002,2]
[421537678,1777834241000,-189.52,0.00014541,2]
[421537707,1777834241000,-822.0,0.00015285,2]
[421537688,1777834241000,-152.74208326,0.00015,2]
[421537696,1777834241000,-152.0,0.00015146,7]
[421537724,1777834241000,-110.53136641,0.000155,2]
[421537695,1777834241000,-306.506027,0.00015068,2]
[421537712,1777834241000,-160.0,0.00015477,2]
[421537833,1777834241000,-265.43433542,0.000156,2]
[421537826,1777834241000,-1996.50333282,0.000156,2]
[421537824,1777834241000,-183018.79528974,0.0001559,2]
[421537790,1777834241000,-12050.15398807,0.0001559,2]
[421537788,1777834241000,-3565.73812553,0.00015566,2]
[421537829,1777834241000,-559.89922852,0.000156,2]
[421537831,1777834241000,-2010.26916131,0.000156,2]
[421537718,1777834241000,-48.2240857,0.00015497,2]
[421537716,1777834241000,-420.14497952,0.00015497,2]
[421537722,1777834241000,-451.7759143,0.00015497,2]
[421537710,1777834241000,-160.0,0.00015477,2]
[421537699,1777834241000,-152.0,0.00015151,7]
[421537726,1777834241000,-1262.77342556,0.00015566,2]
[421537853,1777834242000,-2213.0,0.0001567,2]
[421537841,1777834242000,-559.89922848,0.00015616,2]
[421537849,1777834242000,-1410.0,0.0001567,2]
[421537835,1777834242000,-537.6845,0.000156,2]
[421537843,1777834242000,-559.89922848,0.00015624,2]
[421537837,1777834242000,-2150.738,0.000156,2]
[421537845,1777834242000,-559.89922848,0.00015632,2]
[421537839,1777834242000,-559.89922848,0.00015608,2]
[421537847,1777834242000,-6536.33609112,0.00015632,2]
[421537851,1777834242000,-646.0,0.0001567,2]
[421537863,1777834242000,-252357.3200847,0.000157,2]
[421537861,1777834242000,-500.0,0.000157,2]
[421537859,1777834242000,-1000.0,0.00015699,2]
[421537865,1777834242000,-560.78235578,0.000157,2]
[421537855,1777834242000,-166489.0,0.0001569,2]
[421537857,1777834242000,-211.93974668,0.00015697,2]
[421538060,1777834243000,-878.91953977,0.000157,2]
[421538212,1777834246000,-67684.96852797,0.000157,2]
[421538207,1777834246000,-211.93974668,0.00015697,2]
[421538209,1777834246000,-287618.87314693,0.000157,2]
[421538445,1777834893000,-1000.0,0.00013699,2]
[421538495,1777835432000,-1971.90282386,0.00014175,2]
[421538483,1777835432000,-156.0,0.00013699,2]
[421538489,1777835432000,-1915.56308213,0.0001373,2]
[421538487,1777835432000,-1917.12305549,0.0001373,2]
[421538485,1777835432000,-1000.0,0.00013699,2]
[421538491,1777835432000,-248.37343768,0.0001383,2]
[421538493,1777835432000,-166.66666668,0.00013961,2]
[421538497,1777835432000,-1000.0,0.00014223,2]
[421538507,1777835432000,-245.204821,0.00015068,2]
[421538499,1777835432000,-203.313734,0.00014439,2]
[421538513,1777835432000,-185.0,0.0001548,2]
[421538501,1777835432000,-3905.89811943,0.00014614,2]
[421538505,1777835432000,-3930.4029961,0.00015053,2]
[421538511,1777835432000,-3114.15963378,0.0001522,7]
[421538509,1777835432000,-778.53990845,0.0001522,7]
[421538521,1777835432000,-160.0,0.00015489,2]
[421538518,1777835432000,-160.0,0.00015489,2]
[421538524,1777835432000,-1678.13621834,0.00015492,2]
[421538515,1777835432000,-442.0,0.0001548,2]
[421538522,1777835432000,-2150.738,0.00015491,2]
[421538503,1777835432000,-166.66666666,0.00014773,2]
[421538752,1777835438000,-968.13929442,0.00015492,2]
[421539329,1777835446000,-1503.1981841,0.00015492,2]
[421539356,1777836075000,-310.92089355,0.00013699,2]
[421539387,1777836452000,1000.491,0.00021917,120]
[421539420,1777836632000,-327.0,0.0001295,2]
[421539440,1777836640000,-3655.06401024,0.00013747,2]
[421539452,1777836640000,-4442.93402374,0.00014079,2]
[421539460,1777836640000,-447.57492257,0.00014079,2]
[421539442,1777836640000,-1000.0,0.00013822,2]
[421539436,1777836640000,-261.99650382,0.00013665,2]
[421539446,1777836640000,-1097.72615425,0.00014079,2]
[421539427,1777836640000,-3064.4651141,0.000125,2]
[421539447,1777836640000,-2469.88384707,0.00014079,2]
[421539438,1777836640000,-1000.0,0.00013699,2]
[421539434,1777836640000,-702.75284632,0.00013631,2]
[421539433,1777836640000,-175.86407566,0.00013631,2]
[421539431,1777836640000,-101.60832914,0.0001295,2]
[421539449,1777836640000,-4390.90461702,0.00014079,2]
[421539444,1777836640000,-274.43153856,0.00014079,2]
[421539454,1777836640000,-2417.85444035,0.00014079,2]
[421539429,1777836640000,-8719.46134694,0.000125,2]
[421539456,1777836640000,-9879.53538829,0.00014079,2]
[421539458,1777836640000,-248.65273476,0.00014079,2]
[421539486,1777836640000,-500.0,0.00014817,2]
[421539482,1777836640000,-500.0,0.00014817,2]
[421539481,1777836640000,-500.0,0.00014817,2]
[421539473,1777836640000,-500.0,0.00014817,2]
[421539488,1777836640000,-500.0,0.00014817,2]
[421539475,1777836640000,-168.9517238,0.00014817,2]
[421539479,1777836640000,-500.0,0.00014817,2]
[421539477,1777836640000,-500.0,0.00014817,2]
[421539471,1777836640000,-500.0,0.00014817,2]
[421539469,1777836640000,-151.0,0.00014743,2]
[421539467,1777836640000,-6999.85231684,0.0001447,2]
[421539464,1777836640000,-1243.2636738,0.00014079,2]
[421539465,1777836640000,-3014.77266319,0.0001437,2]
[421539462,1777836640000,-795.68875123,0.00014079,2]
[421539484,1777836640000,-292.70063837,0.00014817,2]
[421539515,1777836641000,-219.81774261,0.00014819,2]
[421539519,1777836641000,-500.0,0.00014819,2]
[421539513,1777836641000,-500.0,0.00014819,2]
[421539507,1777836641000,-411.55666865,0.00014819,2]
[421539511,1777836641000,-500.0,0.00014819,2]
[421539505,1777836641000,-16347.3799778,0.00014818,2]
[421539492,1777836641000,-614.87666005,0.00014817,2]
[421539500,1777836641000,-10352.55250648,0.00014818,2]
[421539498,1777836641000,-456.68306186,0.00014817,2]
[421539494,1777836641000,-500.0,0.00014817,2]
[421539490,1777836641000,-187.18000715,0.00014817,2]
[421539496,1777836641000,-607.49657456,0.00014817,2]
[421539517,1777836641000,-581.34146912,0.00014819,2]
[421539503,1777836641000,-5382.06751572,0.00014818,2]
[421539521,1777836641000,-500.0,0.00014819,2]
[421539510,1777836641000,-88.44333135,0.00014819,2]
[421539538,1777836641000,-484.24643031,0.00014819,2]
[421539525,1777836641000,-485.05190047,0.00014819,2]
[421539527,1777836641000,-14.94809953,0.00014819,2]
[421539532,1777836641000,-15.75356969,0.00014819,2]
[421539529,1777836641000,-500.0,0.00014819,2]
[421539540,1777836641000,-500.0,0.00014819,2]
[421539523,1777836641000,-500.0,0.00014819,2]
[421539531,1777836641000,-489.10740535,0.00014819,2]
[421539542,1777836641000,-500.0,0.00014819,2]
[421539544,1777836641000,-500.0,0.00014819,2]
[421539552,1777836641000,-1071.84988445,0.0001482,2]
[421539545,1777836641000,-500.0,0.00014819,2]
[421539553,1777836641000,-414.12432266,0.0001482,2]
[421539549,1777836641000,-2436.79680064,0.0001482,2]
[421539547,1777836641000,-500.0,0.00014819,2]
[421539551,1777836641000,-1209.05758612,0.0001482,2]
[421539569,1777836643000,-1021.47584788,0.00014079,2]
[421539568,1777836643000,-720.0,0.00014079,2]
[421539585,1777836646000,-725.96729399,0.0001482,2]
[421539584,1777836646000,-48.82384239,0.00014079,2]
[421539627,1777836647000,-151.0,0.00015598,2]
[421539635,1777836647000,-151.0,0.000156,2]
[421539623,1777836647000,-500.0,0.00015598,2]
[421539615,1777836647000,-500.0,0.00015598,2]
[421539625,1777836647000,-500.0,0.00015598,2]
[421539629,1777836647000,-571.14,0.00015599,2]
[421539641,1777836647000,-1097.0732188,0.0001566,2]
[421539639,1777836647000,-185.0,0.00015659,2]